bitfinex/quotes_SOLUSD_20250611
["timestamp","ask_amount","ask_price","bid_price","bid_amount"]
[1749654061699,4.45707368,166.91,166.9,44.953972]
[1749654061906,4.45707368,166.91,166.9,44.66964886]
[1749654063913,4.45707368,166.91,166.9,18.64964886]
[1749654064121,4.45707368,166.91,166.88,52.0]
[1749654064428,4.45707368,166.91,166.89,18.64964886]
[1749654066418,4.45707368,166.91,166.9,11.55267352]
[1749654070005,4.45707368,166.91,166.9,38.26498395]
[1749654070524,4.45707368,166.91,166.9,64.26498395]
[1749654071610,5.5713421,166.92,166.91,18.933972]
[1749654071926,11.14268421,166.97,166.95,18.64964886]
[1749654072147,11.14268421,166.97,166.96,37.55267352]
[1749654072425,11.14268421,166.97,166.96,56.20232238]
[1749654075057,11.14268421,166.97,166.96,70.64964886]
[1749654075339,11.14268421,166.97,166.95,25.98]
[1749654075932,11.14268421,166.97,166.92,0.14216157]
[1749654075933,11.14268421,166.97,166.92,11.41051195]
[1749654076113,11.14268421,166.97,166.96,18.64964886]
[1749654076436,11.14268421,166.97,166.96,44.62964886]
[1749654076941,11.14268421,166.97,166.96,55.89799924]
[1749654077138,11.14268421,166.97,166.96,56.18232238]
[1749654080731,11.14268421,166.97,166.96,62.65198395]
[1749654081421,11.14268421,166.97,166.96,64.26358395]
[1749654083419,11.14268421,166.97,166.96,70.2530425]
[1749654084738,11.14268421,166.97,166.96,64.26358395]
[1749654086645,11.14268421,166.97,166.96,70.2530425]
[1749654086849,14.85691228,167.02,167.01,30.20232238]
[1749654087027,14.85691228,167.02,167.01,56.30448395]
[1749654087662,14.85691228,167.02,167.01,56.16232238]
[1749654088141,14.85691228,167.02,167.01,56.30448395]
[1749654089127,1.6215,167.14,167.06,0.28432314]
[1749654089364,1.6215,167.14,167.08,18.64964886]
[1749654089663,1.6215,167.14,167.1,18.64964886]
[1749654090455,1.6215,167.14,167.1,29.91799924]
[1749654090648,1.6215,167.14,167.11,25.96]
[1749654090848,5.97988875,167.23,167.14,18.64964886]
[1749654090849,1.5061,167.23,167.14,18.64964886]
[1749654091046,1.5061,167.23,167.19,11.26835038]
[1749654091851,1.5061,167.23,167.19,25.94]
[1749654092057,1.5061,167.23,167.11,13.48269728]
[1749654092232,1.5061,167.23,167.13,29.91799924]
[1749654092433,1.5061,167.23,167.15,18.64964886]
[1749654092632,0.14216157,167.22,167.15,18.64964886]
[1749654092940,1.5061,167.23,167.17,18.64964886]
[1749654094731,1.5061,167.23,167.17,36.95266381]
[1749654094941,1.5061,167.23,167.19,18.64964886]
[1749654095145,1.5061,167.23,167.19,36.95266381]
[1749654095358,1.5576,167.27,167.21,18.64964886]
[1749654096447,1.5576,167.27,167.21,36.95266381]
[1749654096649,1.5576,167.27,167.23,18.30301495]
[1749654097354,1.5576,167.27,167.24,18.64964886]
[1749654097865,6.1583,167.32,167.24,36.95266381]
[1749654098033,6.1583,167.32,167.26,18.30301495]
[1749654098440,6.1583,167.32,167.25,0.28432314]
[1749654098634,6.1583,167.32,167.24,18.64964886]
[1749654098844,6.1583,167.32,167.24,36.95266381]
[1749654099045,1.5218,167.33,167.26,18.30301495]
[1749654100250,1.5218,167.33,167.24,18.64964886]
[1749654100251,0.14216157,167.32,167.24,18.64964886]
[1749654100457,26.0,167.31,167.24,18.64964886]
[1749654100846,26.0,167.31,167.23,36.95266381]
[1749654101350,26.0,167.31,167.23,18.64964886]
[1749654102070,0.14216157,167.32,167.23,36.95266381]
[1749654102271,0.14216157,167.32,167.23,18.64964886]
[1749654103340,6.4031429,167.32,167.2,18.64964886]
[1749654104042,6.4031429,167.32,167.2,36.95266381]
[1749654104541,6.4031429,167.32,167.2,18.64964886]
[1749654104949,6.6085,167.31,167.2,18.64964886]
[1749654105645,26.0,167.29,167.18,26.0]
[1749654105849,0.14216157,167.27,167.18,18.64964886]
[1749654106274,0.14216157,167.27,167.17,18.64964886]
[1749654107263,0.14216157,167.27,167.15,18.58733809]
[1749654107264,26.0,167.24,167.15,44.833972]
[1749654107473,0.14216157,167.23,167.14,18.64964886]
[1749654108040,0.14216157,167.23,167.13,25.9]
[1749654108041,0.14216157,167.23,167.13,44.933972]
[1749654108260,0.14216157,167.23,167.15,18.64964886]
[1749654109449,0.14216157,167.21,167.12,18.64964886]
[1749654110251,0.14216157,167.21,167.1,24.72811495]
[1749654110455,0.14216157,167.21,167.11,18.64964886]
[1749654110757,6.12278152,167.21,167.11,18.64964886]
[1749654111749,0.14216157,167.21,167.11,18.64964886]
[1749654112281,0.14216157,167.21,167.11,36.95266381]
[1749654113171,26.0,167.2,167.11,0.28432314]
[1749654113375,26.0,167.19,167.11,0.28432314]
[1749654113683,0.14216157,167.18,167.1,18.64964886]
[1749654115347,1.5551,167.22,167.11,26.28432314]
[1749654115581,1.5551,167.22,167.16,18.30301495]
[1749654115762,6.3188,167.25,167.18,18.30301495]
[1749654115972,5.97740531,167.3,167.15,18.64964886]
[1749654116275,12.97752459,167.38,167.24,18.64964886]
[1749654116477,1.5568,167.32,167.24,18.64964886]
[1749654116685,1.5568,167.32,167.23,18.64964886]
[1749654116855,0.14216157,167.31,167.23,36.95266381]
[1749654117379,1.5568,167.32,167.24,18.58733809]
[1749654117759,1.5568,167.32,167.24,0.28432314]
[1749654118256,1.5568,167.32,167.24,18.58733809]
[1749654119970,1.5568,167.32,167.23,36.95266381]
[1749654120178,1.5568,167.32,167.24,18.30301495]
[1749654120774,1.5568,167.32,167.23,36.95266381]
[1749654120954,0.14216157,167.31,167.23,18.64964886]
[1749654121155,0.14216157,167.31,167.23,36.95266381]
[1749654121579,0.14216157,167.31,167.23,18.64964886]
[1749654121771,0.14216157,167.31,167.23,36.95266381]
[1749654122280,0.14216157,167.31,167.23,18.64964886]
[1749654122477,0.14216157,167.31,167.21,18.30301495]
[1749654122666,0.42648471,167.31,167.21,18.64964886]
[1749654122978,0.14216157,167.31,167.21,36.95266381]
[1749654123474,0.14216157,167.31,167.21,18.64964886]
[1749654123675,0.14216157,167.31,167.21,36.95266381]
[1749654125480,6.40348438,167.31,167.21,18.64964886]
[1749654125662,26.0,167.28,167.21,18.64964886]
[1749654126276,0.14216157,167.31,167.21,18.64964886]
[1749654126565,1.5568,167.32,167.21,18.64964886]
[1749654126566,0.14216157,167.29,167.21,36.95266381]
[1749654126765,26.0,167.3,167.21,36.95266381]
[1749654126969,1.5568,167.32,167.27,18.30301495]
[1749654127362,1.5568,167.32,167.25,36.95266381]
[1749654127885,1.5568,167.32,167.26,18.30301495]
[1749654129081,1.64456157,167.36,167.28,18.64964886]
[1749654129387,26.0,167.35,167.28,18.30301495]
[1749654129768,1.64456157,167.36,167.29,18.30301495]
[1749654130173,1.5024,167.36,167.26,0.28432314]
[1749654130382,1.5024,167.36,167.29,18.30301495]
[1749654130784,1.5024,167.36,167.26,0.28432314]
[1749654130976,1.5024,167.36,167.28,18.30301495]
[1749654131898,1.5024,167.36,167.26,0.28432314]
[1749654132073,1.5024,167.36,167.28,18.30301495]
[1749654132387,26.14216157,167.35,167.27,18.30301495]
[1749654134591,4.44740396,167.35,167.3,18.30301495]
[1749654134792,4.44740396,167.34,167.3,18.30301495]
[1749654134993,4.44740396,167.33,167.32,18.30301495]
[1749654135176,4.44740396,167.33,167.32,18.64964886]
[1749654135773,2.23298914,167.37,167.32,18.64964886]
[1749654135964,4.44986371,167.36,167.32,18.64964886]
[1749654136170,6.68285261,167.35,167.32,18.64964886]
[1749654136468,5.55925495,167.39,167.33,18.30301495]
[1749654136805,6.68020328,167.38,167.32,18.64964886]
[1749654137099,6.68016405,167.37,167.36,36.95266381]
[1749654137281,6.68007958,167.4,167.36,36.95266381]
[1749654137481,4.44732274,167.39,167.37,36.95266381]
[1749654137687,5.55925495,167.44,167.34,25.86]
[1749654137908,31.70141652,167.4,167.31,18.64964886]
[1749654138072,0.14216157,167.38,167.31,18.64964886]
[1749654138276,4.44162818,167.37,167.31,0.14216157]
[1749654138586,7.41233994,167.42,167.3,18.64964886]
[1749654138587,2.23302126,167.36,167.3,36.95266381]
[1749654138789,26.0,167.41,167.3,36.95266381]
[1749654138790,2.23302126,167.35,167.3,36.95266381]
[1749654138977,2.23302126,167.39,167.31,18.30301495]
[1749654139174,0.14216157,167.4,167.33,18.64964886]
[1749654139580,2.36761757,167.4,167.33,18.64964886]
[1749654139790,2.36755275,167.4,167.33,18.64964886]
[1749654140296,28.36753891,167.4,167.33,18.64964886]
[1749654140498,4.47717969,167.45,167.33,18.58733809]
[1749654140800,6.80939968,167.44,167.35,18.30301495]
[1749654141003,2.22507839,167.43,167.37,18.64964886]
[1749654141297,1.5407,167.45,167.37,18.30301495]
[1749654141679,3.765609,167.45,167.37,18.64964886]
[1749654141876,3.76560909,167.45,167.37,18.64964886]
[1749654142080,0.14216157,167.44,167.34,7.6054]
[1749654142396,0.14216157,167.44,167.35,18.64964886]
[1749654142977,2.36710072,167.44,167.34,18.64964886]
[1749654143192,0.28432314,167.43,167.32,18.64964886]
[1749654143382,0.14216157,167.41,167.32,18.64964886]
[1749654144087,26.14216157,167.41,167.32,18.64964886]
[1749654144292,28.22533173,167.4,167.32,18.64964886]
[1749654144489,26.0,167.4,167.32,18.64964886]
[1749654144912,26.14216157,167.41,167.32,18.64964886]
[1749654145113,30.58198281,167.41,167.32,18.64964886]
[1749654145409,26.0,167.39,167.32,18.64964886]
[1749654146611,26.0,167.4,167.33,0.28432314]
[1749654146809,4.43982124,167.44,167.34,18.30301495]
[1749654146981,6.66501079,167.44,167.36,18.30301495]
[1749654147187,0.14216157,167.44,167.36,18.30301495]
[1749654147492,0.14216157,167.44,167.34,0.28432314]
[1749654147890,26.0,167.42,167.33,18.64964886]
[1749654148290,0.14216157,167.42,167.33,36.95266381]
[1749654148503,2.22495481,167.42,167.33,36.95266381]
[1749654148706,1.5407,167.45,167.35,36.95266381]
[1749654148883,1.5407,167.45,167.37,0.28432314]
[1749654148884,26.0,167.44,167.37,0.28432314]
[1749654149203,1.5407,167.45,167.37,0.28432314]
[1749654149381,2.22469453,167.43,167.37,0.28432314]
[1749654150005,2.22469453,167.44,167.37,0.28432314]
[1749654150207,2.22464994,167.44,167.37,0.28432314]
[1749654150404,4.87289434,167.46,167.38,24.48571495]
[1749654150589,2.22443004,167.51,167.39,18.64964886]
[1749654150782,0.14216157,167.47,167.39,18.64964886]
[1749654150986,2.36673713,167.47,167.39,18.64964886]
[1749654151201,2.36673711,167.47,167.39,18.64964886]
[1749654151505,2.36680853,167.47,167.39,18.64964886]
[1749654152299,2.36681219,167.47,167.39,18.64964886]
[1749654152700,32.96187991,167.47,167.37,37.23698695]
[1749654152884,2.22452932,167.46,167.37,37.23698695]
[1749654153200,2.22452708,167.46,167.37,37.23698695]
[1749654153783,2.22452708,167.46,167.37,18.64964886]
[1749654153784,0.14216157,167.46,167.37,18.64964886]
[1749654153983,26.0,167.45,167.37,18.64964886]
[1749654155004,0.14216157,167.46,167.37,36.95266381]
[1749654155801,26.0,167.46,167.38,0.28432314]
[1749654156009,26.0,167.45,167.38,0.28432314]
[1749654156611,26.0,167.46,167.38,0.28432314]
[1749654157008,26.0,167.46,167.39,18.64964886]
[1749654157192,30.73722929,167.47,167.39,18.64964886]
[1749654157400,26.0,167.47,167.39,18.64964886]
[1749654158214,30.76423018,167.47,167.39,18.64964886]
[1749654159130,30.76423018,167.47,167.39,36.95266381]
[1749654159333,30.76423018,167.47,167.41,36.95266381]
[1749654159623,0.14216157,167.47,167.38,18.933972]
[1749654159929,26.0,167.46,167.38,0.28432314]
[1749654160099,26.0,167.46,167.37,18.64964886]
[1749654162130,0.14216157,167.45,167.33,1.65076157]
[1749654162332,1.5794,167.44,167.35,18.79181043]
[1749654162624,0.14216157,167.43,167.35,18.64964886]
[1749654164807,26.14216157,167.43,167.35,18.64964886]
[1749654165423,26.14216157,167.43,167.34,6.1402]
[1749654165424,32.11496386,167.43,167.34,6.1402]
[1749654165635,26.0,167.4,167.33,18.64964886]
[1749654165816,10.40452898,167.43,167.33,18.64964886]
[1749654166011,0.14216157,167.42,167.33,18.64964886]
[1749654166208,0.14216157,167.42,167.32,18.64964886]
[1749654167043,0.14216157,167.42,167.32,36.95266381]
[1749654167342,0.14216157,167.43,167.33,0.28432314]
[1749654168038,10.42648471,167.41,167.26,6.0403]
[1749654168228,19.07613357,167.39,167.26,6.0403]
[1749654168424,10.42648471,167.37,167.2,1.6328]
[1749654168620,0.42648471,167.35,167.21,18.30301495]
[1749654168818,6.213,167.34,167.21,18.64964886]
[1749654169052,6.3711114,167.33,167.19,24.54681495]
[1749654169229,0.14216157,167.3,167.19,6.2438]
[1749654169721,0.14216157,167.3,167.2,18.64964886]
[1749654169918,2.36302183,167.3,167.2,18.64964886]
[1749654170126,26.14216157,167.27,167.18,6.6752246]
[1749654170345,26.14216157,167.27,167.19,18.64964886]
[1749654170642,4.90273937,167.31,167.22,18.30301495]
[1749654170942,4.90273937,167.31,167.18,6.6752246]
[1749654170943,5.97552317,167.35,167.26,18.64964886]
[1749654171138,5.97552317,167.35,167.24,18.30301495]
[1749654171344,26.0,167.32,167.24,18.30301495]
[1749654171725,0.14216157,167.33,167.24,18.30301495]
[1749654171937,14.01110183,167.37,167.26,18.64964886]
[1749654172140,7.7519,167.37,167.26,36.95266381]
[1749654172326,0.14216157,167.36,167.26,36.95266381]
[1749654172531,26.0,167.34,167.28,18.64964886]
[1749654173231,7.7519,167.37,167.28,36.95266381]
[1749654175134,6.1,167.37,167.3,18.64964886]
[1749654175532,6.1,167.37,167.3,18.30301495]
[1749654176247,6.1,167.37,167.32,18.64964886]
[1749654176944,26.0,167.38,167.32,18.64964886]
[1749654177246,1.584,167.41,167.32,18.64964886]
[1749654177449,26.0,167.39,167.32,18.30301495]
[1749654178147,1.584,167.41,167.32,18.933972]
[1749654178329,1.584,167.41,167.32,37.23698695]
[1749654178726,26.0,167.38,167.28,0.14216157]
[1749654178928,26.0,167.38,167.31,0.28432314]
[1749654179528,26.0,167.38,167.3,0.28432314]
[1749654179848,0.14216157,167.37,167.27,36.95266381]
[1749654180063,0.14216157,167.37,167.27,18.64964886]
[1749654180229,4.58764923,167.37,167.27,18.64964886]
[1749654180431,10.56263798,167.37,167.27,18.64964886]
[1749654180826,0.14216157,167.37,167.27,36.95266381]
[1749654181027,6.11699618,167.37,167.27,36.95266381]
[1749654181225,6.11699618,167.37,167.27,18.64964886]
[1749654182538,4.44548766,167.38,167.3,18.64964886]
[1749654182737,0.14216157,167.39,167.3,36.95266381]
[1749654183133,0.14216157,167.39,167.3,18.64964886]
[1749654183352,0.14216157,167.39,167.27,18.30301495]
[1749654183528,0.14216157,167.39,167.27,0.28432314]
[1749654184231,26.0,167.35,167.27,0.28432314]
[1749654184649,26.0,167.35,167.26,62.95266381]
[1749654184852,26.0,167.35,167.26,44.64964886]
[1749654185052,6.11734433,167.36,167.26,18.64964886]
[1749654186451,26.0,167.33,167.26,18.64964886]
[1749654186857,0.14216157,167.32,167.24,18.64964886]
[1749654189144,0.14216157,167.32,167.22,7.6331]
[1749654189330,6.11876314,167.32,167.23,18.64964886]
[1749654189529,6.11876314,167.32,167.2,18.64964886]
[1749654189755,6.11876314,167.32,167.2,36.95266381]
[1749654191053,0.14216157,167.32,167.21,0.14216157]
[1749654191244,0.14216157,167.32,167.23,18.30301495]
[1749654191425,0.14216157,167.32,167.23,18.64964886]
[1749654191835,5.97662762,167.32,167.2,18.933972]
[1749654192058,26.0,167.29,167.2,37.09482538]
[1749654192239,26.0,167.29,167.22,18.30301495]
[1749654192440,26.0,167.31,167.24,18.64964886]
[1749654193854,26.0,167.31,167.24,18.30301495]
[1749654194249,26.0,167.31,167.26,18.64964886]
[1749654194440,26.0,167.31,167.26,36.95266381]
[1749654194951,7.6372,167.34,167.26,36.95266381]
[1749654195262,7.6372,167.34,167.25,0.28432314]
[1749654196237,0.14216157,167.33,167.24,36.95266381]
[1749654196460,26.0,167.31,167.24,36.95266381]
[1749654197137,26.0,167.31,167.26,18.64964886]
[1749654197454,0.14216157,167.33,167.26,18.64964886]
[1749654197862,26.0,167.31,167.26,18.64964886]
[1749654199360,0.14216157,167.33,167.26,18.64964886]
[1749654199553,6.11842222,167.33,167.21,18.30301495]
[1749654201372,0.14216157,167.33,167.25,18.30301495]
[1749654201569,7.6372,167.34,167.27,36.95266381]
[1749654202076,6.1,167.34,167.28,18.64964886]
[1749654202240,1.5795,167.38,167.31,18.30301495]
[1749654204881,26.0,167.35,167.28,18.30301495]
[1749654205170,26.14216157,167.37,167.28,18.30301495]
[1749654206458,4.4395283,167.39,167.32,36.95266381]
[1749654206762,30.4395283,167.39,167.32,18.64964886]
[1749654206968,26.0,167.39,167.32,18.64964886]
[1749654207343,4.4395283,167.41,167.32,36.95266381]
[1749654207547,12.61704404,167.42,167.32,36.95266381]
[1749654207748,26.0,167.39,167.34,36.95266381]
[1749654208146,12.1689283,167.42,167.36,18.64964886]
[1749654208343,33.7294,167.42,167.36,18.64964886]
[1749654208547,33.7294,167.42,167.34,24.85281495]
[1749654208775,33.7294,167.42,167.35,18.64964886]
[1749654209577,33.7294,167.42,167.34,18.64964886]
[1749654209578,0.14216157,167.41,167.34,18.64964886]
[1749654209871,26.0,167.39,167.33,18.64964886]
[1749654210047,26.0,167.39,167.33,36.95266381]
[1749654210251,7.7294,167.42,167.33,18.64964886]
[1749654210467,7.7294,167.42,167.35,18.64964886]
[1749654210953,7.7294,167.42,167.35,36.95266381]
[1749654211154,6.08,167.42,167.35,36.95266381]
[1749654211965,6.08,167.42,167.35,18.64964886]
[1749654213754,26.0,167.41,167.35,18.64964886]
[1749654214376,36.53113597,167.42,167.35,18.64964886]
[1749654214576,32.08,167.42,167.35,18.64964886]
[1749654214887,32.08,167.42,167.35,36.95266381]
[1749654215257,6.08,167.42,167.36,0.28432314]
[1749654215449,9.35581487,167.44,167.36,0.28432314]
[1749654215450,4.45113597,167.44,167.39,18.30301495]
[1749654215650,2.97741586,167.49,167.41,36.95266381]
[1749654215849,1.6157,167.51,167.41,18.64964886]
[1749654216072,26.0,167.47,167.41,18.64964886]
[1749654216774,7.58551107,167.51,167.41,18.64964886]
[1749654216952,26.0,167.46,167.41,18.64964886]
[1749654217274,0.14216157,167.49,167.41,18.64964886]
[1749654217467,0.14216157,167.49,167.41,36.95266381]
[1749654217468,26.0,167.47,167.41,36.95266381]
[1749654218476,26.0,167.47,167.41,18.64964886]
[1749654221154,26.0,167.46,167.4,18.64964886]
[1749654222155,26.0,167.46,167.4,36.95266381]
[1749654222378,2.91748208,167.49,167.43,18.64964886]
[1749654222581,26.0,167.49,167.43,18.64964886]
[1749654222888,26.0,167.49,167.43,18.30301495]
[1749654223582,26.0,167.49,167.44,18.30301495]
[1749654223777,26.0,167.49,167.45,18.64964886]
[1749654224158,26.0,167.49,167.42,25.78]
[1749654224386,26.0,167.49,167.43,37.23698695]
[1749654225260,4.44860553,167.5,167.43,37.23698695]
[1749654225465,26.0,167.49,167.43,37.23698695]
[1749654225786,4.44860553,167.5,167.44,18.30301495]
[1749654225985,4.44860553,167.5,167.43,18.933972]
[1749654225986,4.44860553,167.5,167.45,18.30301495]
[1749654226677,4.44860553,167.5,167.49,36.95266381]
[1749654227687,4.44860553,167.5,167.49,18.64964886]
[1749654227886,4.44860553,167.5,167.44,18.30301495]
[1749654228186,4.44860553,167.5,167.45,18.64964886]
[1749654228383,4.44860553,167.5,167.45,36.95266381]
[1749654228990,4.44860553,167.5,167.47,18.30301495]
[1749654229986,4.44860553,167.5,167.45,18.30301495]
[1749654230170,4.44860553,167.5,167.46,18.64964886]
[1749654230774,4.44860553,167.5,167.45,36.95266381]
[1749654231488,4.44860553,167.5,167.46,18.30301495]
[1749654231681,4.44860553,167.5,167.45,36.95266381]
[1749654232082,4.44860553,167.5,167.46,18.30301495]
[1749654233990,4.44860553,167.5,167.45,18.64964886]
[1749654233991,4.44860553,167.5,167.47,18.30301495]
[1749654235089,4.44860553,167.5,167.48,18.30301495]
[1749654236887,4.44860553,167.5,167.49,36.95266381]
[1749654237483,4.44860553,167.5,167.49,18.64964886]
[1749654237687,4.44860553,167.5,167.49,36.95266381]
[1749654238974,4.44860553,167.5,167.49,18.64964886]
[1749654239587,4.44860553,167.5,167.48,25.74]
[1749654240291,4.44860553,167.5,167.49,36.95266381]
[1749654240594,4.44860553,167.5,167.48,25.74]
[1749654240796,4.44860553,167.5,167.47,18.30301495]
[1749654240973,4.44860553,167.5,167.46,44.04301495]
[1749654241382,4.44860553,167.5,167.46,36.93104394]
[1749654241578,4.44860553,167.5,167.47,11.19104394]
[1749654241787,4.44860553,167.5,167.47,29.8406928]
[1749654244879,4.44860553,167.5,167.47,18.64964886]
[1749654247788,4.44860553,167.5,167.43,107.32164394]
[1749654247982,4.44860553,167.5,167.44,25.74]
[1749654248721,0.14216157,167.49,167.39,18.64964886]
[1749654248896,0.14216157,167.49,167.4,36.93104394]
[1749654249699,0.14216157,167.49,167.4,25.74]
[1749654250717,6.11283449,167.49,167.38,6.101]
[1749654250898,0.14216157,167.47,167.38,31.841]
[1749654251292,26.0,167.45,167.38,31.841]
[1749654251490,26.0,167.45,167.38,25.74]
[1749654251694,26.0,167.45,167.38,36.93104394]
[1749654251891,26.0,167.45,167.38,44.38964886]
[1749654253018,26.14216157,167.47,167.38,55.5806928]
[1749654253191,26.14216157,167.47,167.39,11.19104394]
[1749654253907,26.0,167.47,167.39,0.28432314]
[1749654254126,1.5439,167.48,167.41,11.19104394]
[1749654254301,1.5439,167.48,167.41,44.38964886]
[1749654254889,1.5439,167.48,167.41,55.5806928]
[1749654255118,34.882726,167.5,167.43,11.19104394]
[1749654255119,30.44860553,167.5,167.43,11.19104394]
[1749654255295,30.44860553,167.5,167.45,18.64964886]
[1749654256515,30.44860553,167.5,167.44,25.74]
[1749654260013,0.14216157,167.49,167.42,18.64964886]
[1749654260528,30.44860553,167.5,167.43,29.8406928]
[1749654260529,4.44860553,167.5,167.43,29.8406928]
[1749654261318,4.44860553,167.5,167.44,11.19104394]
[1749654261526,4.44860553,167.5,167.43,29.8406928]
[1749654261751,4.44860553,167.5,167.43,18.64964886]
[1749654263302,4.44860553,167.5,167.43,11.19104394]
[1749654264223,4.44860553,167.5,167.46,37.19104394]
[1749654264402,4.44860553,167.5,167.46,18.64964886]
[1749654265019,4.44860553,167.5,167.48,18.64964886]
[1749654266021,4.44860553,167.5,167.49,11.19104394]
[1749654266321,4.44860553,167.5,167.49,44.36964886]
[1749654267107,4.44860553,167.5,167.49,55.5606928]
[1749654267623,4.44860553,167.5,167.49,44.36964886]
[1749654268003,4.44860553,167.5,167.49,25.72]
[1749654269628,4.44860553,167.5,167.49,36.91104394]
[1749654269830,4.44860553,167.5,167.49,25.72]
[1749654270028,4.44860553,167.5,167.49,36.91104394]
[1749654270336,4.44860553,167.5,167.49,55.84501594]
[1749654270632,4.44860553,167.5,167.49,25.72]
[1749654271002,4.44860553,167.5,167.49,36.91104394]
[1749654271411,4.44860553,167.5,167.49,25.72]
[1749654271810,4.44860553,167.5,167.47,36.91104394]
[1749654273008,4.44860553,167.5,167.49,26.0]
[1749654273821,4.44860553,167.5,167.48,11.19104394]
[1749654275411,4.44860553,167.5,167.49,11.19104394]
[1749654276216,4.44860553,167.5,167.47,25.72]
[1749654276541,4.44860553,167.5,167.49,11.19104394]
[1749654276919,4.44860553,167.5,167.48,11.19104394]
[1749654277241,4.44860553,167.5,167.47,36.91104394]
[1749654277932,4.44860553,167.5,167.44,36.91104394]
[1749654278115,4.44860553,167.5,167.46,11.19104394]
[1749654278322,4.44860553,167.5,167.47,11.19104394]
[1749654278615,4.44860553,167.5,167.45,25.72]
[1749654279141,0.14216157,167.49,167.42,36.89104394]
[1749654280420,0.14216157,167.49,167.43,11.19104394]
[1749654281324,26.14216157,167.49,167.42,36.89104394]
[1749654281529,0.14216157,167.49,167.42,36.89104394]
[1749654281753,4.44860553,167.5,167.43,11.19104394]
[1749654282055,4.44860553,167.5,167.45,11.19104394]
[1749654282888,4.44860553,167.5,167.46,11.19104394]
[1749654283535,4.44860553,167.5,167.45,25.7]
[1749654283536,4.44860553,167.5,167.48,11.19104394]
[1749654283738,4.44860553,167.5,167.49,11.19104394]
[1749654284246,4.44860553,167.5,167.45,55.5406928]
[1749654284637,4.44860553,167.5,167.46,11.19104394]
[1749654284837,4.44860553,167.5,167.47,11.19104394]
[1749654285148,4.44860553,167.5,167.45,25.7]
[1749654285323,4.44860553,167.5,167.45,36.89104394]
[1749654286333,4.44860553,167.5,167.46,11.19104394]
[1749654286639,4.44860553,167.5,167.45,36.89104394]
[1749654286841,4.44860553,167.5,167.45,25.7]
[1749654287068,0.14216157,167.49,167.4,18.64964886]
[1749654287284,0.14216157,167.49,167.41,11.19104394]
[1749654287487,0.14216157,167.49,167.42,11.19104394]
[1749654289341,4.44860553,167.5,167.43,11.19104394]
[1749654290549,4.44860553,167.5,167.41,18.933972]
[1749654290751,4.44860553,167.5,167.42,11.19104394]
[1749654291771,1.5108,167.48,167.4,55.5406928]
[1749654292169,1.5108,167.48,167.4,29.8406928]
[1749654292349,1.5108,167.48,167.41,11.19104394]
[1749654293859,1.5108,167.48,167.4,18.64964886]
[1749654294060,1.5108,167.48,167.42,11.19104394]
[1749654294265,1.5108,167.48,167.41,11.19104394]
[1749654294955,1.5108,167.48,167.4,29.8406928]
[1749654296669,0.14216157,167.47,167.34,1.6345]
[1749654296869,0.14216157,167.43,167.34,36.89104394]
[1749654297277,0.14216157,167.43,167.33,11.19104394]
[1749654297448,0.14216157,167.43,167.35,18.64964886]
[1749654297650,0.14216157,167.43,167.34,18.64964886]
[1749654298073,0.14216157,167.43,167.34,29.8406928]
[1749654298659,0.14216157,167.43,167.35,11.19104394]
[1749654298972,26.0,167.44,167.36,11.19104394]
[1749654299188,26.0,167.44,167.37,11.19104394]
[1749654299472,26.0,167.44,167.38,11.19104394]
[1749654300396,26.0,167.44,167.35,0.28432314]
[1749654300553,0.42648471,167.45,167.34,11.19104394]
[1749654300757,6.39846636,167.45,167.34,18.64964886]
[1749654301057,0.42648471,167.45,167.35,11.19104394]
[1749654301264,6.39850896,167.45,167.34,29.8406928]
[1749654301449,0.42648471,167.45,167.34,29.8406928]
[1749654301661,6.39842371,167.45,167.32,58.2482]
[1749654301865,0.42648471,167.43,167.31,11.19104394]
[1749654302065,4.87829146,167.43,167.28,6.3007]
[1749654302269,0.42648471,167.41,167.29,25.7]
[1749654302495,0.42648471,167.41,167.29,11.19104394]
[1749654302703,6.39988607,167.41,167.29,11.19104394]
[1749654302868,0.42648471,167.41,167.31,11.19104394]
[1749654305994,26.0,167.31,167.24,6.3007]
[1749654306293,28.93830944,167.31,167.24,24.57129033]
[1749654306594,28.93830944,167.31,167.24,6.3007]
[1749654308193,28.93830944,167.31,167.24,24.57129033]
[1749654309366,1.5993,167.33,167.26,18.27059033]
[1749654309569,1.5993,167.33,167.25,18.64964886]
[1749654309787,4.58287299,167.33,167.24,6.3007]
[1749654309995,0.14216157,167.32,167.24,6.3007]
[1749654310387,0.14216157,167.32,167.22,45.92824886]
[1749654310574,0.14216157,167.32,167.22,64.19883919]
[1749654310770,0.14216157,167.32,167.23,36.92023919]